[Event "*** SCC Grand Prix: Titled Tuesday Blitz"]
[Site "Chess.com"]
[Date "2020.10.13"]
[Round "4"]
[White "natelleka"]
[Black "zmeeed67"]
[Result "0-1"]
[WhiteElo "2175"]
[BlackElo "2348"]
[TimeControl "180+1"]
[EndTime "10:40:07 PDT"]
[Termination "zmeeed67 won on time"]

1. e4 {[%clk 0:02:58.6]} 1... Nc6 {[%clk 0:02:59.9]} 2. d4 {[%clk 0:02:55.9]}
2... d6 {[%clk 0:02:59.2]} 3. d5 {[%clk 0:02:48.2]} 3... Ne5 {[%clk 0:02:58.6]}
4. f4 {[%clk 0:02:46.8]} 4... Nd7 {[%clk 0:02:59]} 5. Nf3 {[%clk 0:02:45.5]}
5... c6 {[%clk 0:02:54]} 6. c4 {[%clk 0:02:42.8]} 6... Qc7 {[%clk 0:02:49.2]} 7.
Nc3 {[%clk 0:02:38.7]} 7... Ngf6 {[%clk 0:02:49.2]} 8. Bd3 {[%clk 0:02:37.5]}
8... g6 {[%clk 0:02:49.2]} 9. O-O {[%clk 0:02:37.4]} 9... Bg7 {[%clk 0:02:49.2]}
10. Re1 {[%clk 0:02:32.5]} 10... Nc5 {[%clk 0:02:33.8]} 11. e5 {[%clk
0:02:23.6]} 11... Ng4 {[%clk 0:02:11]} 12. exd6 {[%clk 0:02:08.9]} 12... Qxd6
{[%clk 0:02:05.8]} 13. h3 {[%clk 0:01:24.7]} 13... Nf6 {[%clk 0:01:50.5]} 14.
Ne5 {[%clk 0:01:22.4]} 14... O-O {[%clk 0:01:42.8]} 15. Bc2 {[%clk 0:01:14.4]}
15... cxd5 {[%clk 0:01:35.2]} 16. cxd5 {[%clk 0:01:10.6]} 16... a6 {[%clk
0:01:33.1]} 17. b4 {[%clk 0:01:01.7]} 17... Ncd7 {[%clk 0:01:33]} 18. a3 {[%clk
0:00:59.7]} 18... Nh5 {[%clk 0:01:25.6]} 19. Ne4 {[%clk 0:00:38.6]} 19... Qb8
{[%clk 0:01:23.1]} 20. Nxd7 {[%clk 0:00:19.2]} 20... Bxd7 {[%clk 0:01:20.4]} 21.
Rb1 {[%clk 0:00:19]} 21... Nxf4 {[%clk 0:01:07.4]} 22. Nc5 {[%clk 0:00:18.7]}
22... Bb5 {[%clk 0:00:43.8]} 23. d6 {[%clk 0:00:16.7]} 23... Nh5 {[%clk
0:00:32.5]} 24. Rxe7 {[%clk 0:00:13.3]} 24... Bc6 {[%clk 0:00:29.9]} 25. Be4
{[%clk 0:00:09.6]} 25... Bxe4 {[%clk 0:00:27.6]} 26. Nxe4 {[%clk 0:00:09.7]}
26... Nf6 {[%clk 0:00:24.8]} 27. Ng5 {[%clk 0:00:09.1]} 27... Qd8 {[%clk
0:00:19.6]} 28. Qb3 {[%clk 0:00:08.1]} 28... Qxd6 {[%clk 0:00:15]} 29. Rxf7
{[%clk 0:00:08.1]} 29... Kh8 {[%clk 0:00:14.3]} 30. Rxf8+ {[%clk 0:00:07.1]}
30... Rxf8 {[%clk 0:00:14.7]} 31. Nf7+ {[%clk 0:00:06.9]} 31... Rxf7 {[%clk
0:00:15.1]} 32. Qxf7 {[%clk 0:00:07]} 32... Ng8 {[%clk 0:00:11.2]} 33. Bg5
{[%clk 0:00:06]} 33... Qd4+ {[%clk 0:00:10.8]} 34. Kh1 {[%clk 0:00:04.6]} 34...
h6 {[%clk 0:00:11.2]} 35. Rf1 {[%clk 0:00:02]} 35... hxg5 {[%clk 0:00:08.6]} 36.
Qxg6 {[%clk 0:00:02.2]} 36... Qb2 {[%clk 0:00:04.2]} 37. Qh5+ {[%clk 0:00:02.3]}
37... Nh6 {[%clk 0:00:03.8]} 38. Qg6 {[%clk 0:00:01.6]} 38... Qc3 {[%clk
0:00:03.1]} 39. Qxg5 {[%clk 0:00:01.8]} 39... Kh7 {[%clk 0:00:03.2]} 40. Qd8
{[%clk 0:00:01.5]} 40... Qe5 {[%clk 0:00:02.9]} 41. Qd7 {[%clk 0:00:01.3]} 41...
Qd4 {[%clk 0:00:01.7]} 42. Qxb7 {[%clk 0:00:01.5]} 42... Qd3 {[%clk 0:00:01.7]}
0-1

[Event "*** SCC Grand Prix: Titled Tuesday Blitz"]
[Site "Chess.com"]
[Date "2020.10.13"]
[Round "4"]
[White "SabKaD4ddy"]
[Black "northridgehawk"]
[Result "1-0"]
[WhiteElo "2509"]
[BlackElo "2209"]
[TimeControl "180+1"]
[EndTime "10:40:12 PDT"]
[Termination "SabKaD4ddy won by resignation"]

1. e4 {[%clk 0:03:00.9]} 1... e5 {[%clk 0:02:23.5]} 2. Nf3 {[%clk 0:02:59]} 2...
Nc6 {[%clk 0:02:23.4]} 3. Bb5 {[%clk 0:02:59.1]} 3... a6 {[%clk 0:02:23.2]} 4.
Bxc6 {[%clk 0:02:59.7]} 4... dxc6 {[%clk 0:02:24.1]} 5. d4 {[%clk 0:03:00.5]}
5... Bg4 {[%clk 0:02:22.8]} 6. dxe5 {[%clk 0:03:00.4]} 6... Qxd1+ {[%clk
0:02:23.7]} 7. Kxd1 {[%clk 0:03:01.3]} 7... O-O-O+ {[%clk 0:02:23.2]} 8. Ke2
{[%clk 0:03:01.9]} 8... f6 {[%clk 0:02:22.7]} 9. h3 {[%clk 0:02:57.6]} 9...
Bxf3+ {[%clk 0:02:21.6]} 10. gxf3 {[%clk 0:02:58.5]} 10... fxe5 {[%clk
0:02:22.2]} 11. Bg5 {[%clk 0:02:53.5]} 11... Nf6 {[%clk 0:02:22.5]} 12. Bxf6
{[%clk 0:02:51.9]} 12... gxf6 {[%clk 0:02:23.4]} 13. Nd2 {[%clk 0:02:51.1]}
13... Bh6 {[%clk 0:02:17.4]} 14. Nc4 {[%clk 0:02:50.3]} 14... b5 {[%clk
0:02:13.5]} 15. Ne3 {[%clk 0:02:50.5]} 15... Rd7 {[%clk 0:02:11.4]} 16. Rad1
{[%clk 0:02:48.5]} 16... Rhd8 {[%clk 0:02:11.4]} 17. Rxd7 {[%clk 0:02:46.8]}
17... Rxd7 {[%clk 0:02:12.3]} 18. Rd1 {[%clk 0:02:47.4]} 18... Rxd1 {[%clk
0:02:08.1]} 19. Nxd1 {[%clk 0:02:47.5]} 19... Kd7 {[%clk 0:02:08.4]} 20. Ne3
{[%clk 0:02:44.7]} 20... Ke6 {[%clk 0:02:06.8]} 21. Nf5 {[%clk 0:02:42.9]} 21...
Bc1 {[%clk 0:02:02.6]} 22. b3 {[%clk 0:02:42]} 22... c5 {[%clk 0:02:02.5]} 23.
c4 {[%clk 0:02:39.1]} 23... c6 {[%clk 0:02:02.1]} 24. Kd3 {[%clk 0:02:37.1]}
24... Bf4 {[%clk 0:01:56.3]} 25. a4 {[%clk 0:02:32.8]} 25... Kd7 {[%clk
0:01:45.2]} 26. Ng7 {[%clk 0:02:28.6]} 26... Ke7 {[%clk 0:01:42.4]} 27. Nh5
{[%clk 0:02:27.3]} 27... Bc1 {[%clk 0:01:39.5]} 28. Kc2 {[%clk 0:02:25]} 28...
Bg5 {[%clk 0:01:36.8]} 29. Kd3 {[%clk 0:02:22.1]} 29... Bc1 {[%clk 0:01:34.3]}
30. Ng3 {[%clk 0:02:20.8]} 30... Ke6 {[%clk 0:01:33.3]} 31. Ne2 {[%clk
0:02:20.8]} 31... Bg5 {[%clk 0:01:32.2]} 32. Nc3 {[%clk 0:02:20.9]} 32... b4
{[%clk 0:01:30.1]} 33. Ne2 {[%clk 0:02:18.3]} 33... Bh4 {[%clk 0:01:29.5]} 34.
Ng3 {[%clk 0:02:05.4]} 34... Bg5 {[%clk 0:01:22.3]} 35. Ke2 {[%clk 0:02:04.1]}
35... Bh6 {[%clk 0:01:14.2]} 36. Nf5 {[%clk 0:02:03]} 36... Bf4 {[%clk
0:01:11.3]} 37. Kf1 {[%clk 0:02:03.9]} 37... h5 {[%clk 0:01:08.3]} 38. Kg2
{[%clk 0:02:04.8]} 38... Kf7 {[%clk 0:01:05.4]} 39. Nd6+ {[%clk 0:02:03.9]}
39... Ke6 {[%clk 0:01:04.9]} 40. Nb7 {[%clk 0:01:38.4]} 40... a5 {[%clk
0:00:58.4]} 41. Nxa5 {[%clk 0:00:53.5]} 41... Bg5 {[%clk 0:00:40.4]} 42. Nb7
{[%clk 0:00:47.2]} 42... f5 {[%clk 0:00:38.8]} 43. Nxc5+ {[%clk 0:00:46.6]}
43... Kd6 {[%clk 0:00:38.6]} 44. Nd3 {[%clk 0:00:46.2]} 44... fxe4 {[%clk
0:00:38]} 45. fxe4 {[%clk 0:00:46.9]} 45... Bd8 {[%clk 0:00:36.5]} 46. Nxb4
{[%clk 0:00:46.1]} 46... Kc5 {[%clk 0:00:36.6]} 47. Nd3+ {[%clk 0:00:47]} 47...
Kd4 {[%clk 0:00:36.6]} 48. Nb4 {[%clk 0:00:44.1]} 48... Kc5 {[%clk 0:00:35.5]}
49. Nc2 {[%clk 0:00:43.3]} 49... h4 {[%clk 0:00:31.2]} 50. Kf3 {[%clk
0:00:43.3]} 50... Bb6 {[%clk 0:00:27.3]} 51. Ke2 {[%clk 0:00:42.9]} 51... Bd8
{[%clk 0:00:25.5]} 52. Kd3 {[%clk 0:00:42.4]} 52... Kd6 {[%clk 0:00:23.8]} 53.
b4 {[%clk 0:00:42.4]} 53... c5 {[%clk 0:00:18.7]} 54. bxc5+ {[%clk 0:00:32.6]}
54... Kxc5 {[%clk 0:00:18.6]} 55. Ne3 {[%clk 0:00:31.5]} 55... Ba5 {[%clk
0:00:17.9]} 56. Ng4 {[%clk 0:00:31.1]} 56... Be1 {[%clk 0:00:17.3]} 57. Nxe5
{[%clk 0:00:28.2]} 57... Bxf2 {[%clk 0:00:17.2]} 58. Nf3 {[%clk 0:00:25.6]}
58... Bg3 {[%clk 0:00:15.8]} 59. e5 {[%clk 0:00:25.6]} 59... Kb4 {[%clk
0:00:16]} 60. Kd4 {[%clk 0:00:25.4]} 60... Kxa4 {[%clk 0:00:16.2]} 61. e6 {[%clk
0:00:24.6]} 61... Bd6 {[%clk 0:00:15.1]} 62. c5 {[%clk 0:00:25.1]} 62... Be7
{[%clk 0:00:14.6]} 63. c6 {[%clk 0:00:25.7]} 63... Kb5 {[%clk 0:00:15.5]} 64. c7
{[%clk 0:00:26.1]} 1-0

[Event "*** SCC Grand Prix: Titled Tuesday Blitz"]
[Site "Chess.com"]
[Date "2020.10.13"]
[Round "4"]
[White "TrimitziosP7"]
[Black "GigaQuparadze"]
[Result "1/2-1/2"]
[WhiteElo "2832"]
[BlackElo "2968"]
[TimeControl "180+1"]
[EndTime "10:40:13 PDT"]
[Termination "Game drawn by repetition"]

1. Nf3 {[%clk 0:03:00.9]} 1... Nf6 {[%clk 0:02:58.1]} 2. b3 {[%clk 0:02:58]}
2... g6 {[%clk 0:02:57]} 3. Bb2 {[%clk 0:02:57.9]} 3... Bg7 {[%clk 0:02:57.2]}
4. g3 {[%clk 0:02:54.6]} 4... b6 {[%clk 0:02:57.3]} 5. Bg2 {[%clk 0:02:54.6]}
5... Bb7 {[%clk 0:02:57.6]} 6. O-O {[%clk 0:02:54.6]} 6... O-O {[%clk
0:02:57.6]} 7. c4 {[%clk 0:02:52.6]} 7... d6 {[%clk 0:02:57.4]} 8. d4 {[%clk
0:02:52.2]} 8... e6 {[%clk 0:02:53.4]} 9. Nc3 {[%clk 0:02:51.9]} 9... Ne4 {[%clk
0:02:52.3]} 10. Qc2 {[%clk 0:02:51.3]} 10... Nxc3 {[%clk 0:02:49.4]} 11. Bxc3
{[%clk 0:02:50.8]} 11... Nd7 {[%clk 0:02:45.4]} 12. e4 {[%clk 0:02:50.3]} 12...
e5 {[%clk 0:02:43.5]} 13. d5 {[%clk 0:02:49.3]} 13... a5 {[%clk 0:02:41.2]} 14.
Ne1 {[%clk 0:02:48]} 14... Nc5 {[%clk 0:02:35.9]} 15. Nd3 {[%clk 0:02:47.7]}
15... Nxd3 {[%clk 0:02:35]} 16. Qxd3 {[%clk 0:02:48.6]} 16... Qe7 {[%clk
0:02:35]} 17. Rae1 {[%clk 0:02:42.9]} 17... c6 {[%clk 0:02:27.7]} 18. dxc6
{[%clk 0:02:36.4]} 18... Bxc6 {[%clk 0:02:28.6]} 19. Rd1 {[%clk 0:02:36.7]}
19... Rfd8 {[%clk 0:02:25.6]} 20. Bd2 {[%clk 0:02:30.9]} 20... Qb7 {[%clk
0:02:14.1]} 21. a4 {[%clk 0:02:24.1]} 21... Bf6 {[%clk 0:01:47.6]} 22. Rfe1
{[%clk 0:02:21.2]} 22... h5 {[%clk 0:01:46.8]} 23. Be3 {[%clk 0:02:17.1]} 23...
h4 {[%clk 0:01:43.9]} 24. Qb1 {[%clk 0:02:10.7]} 24... Kg7 {[%clk 0:01:42.7]}
25. Rd2 {[%clk 0:02:07.9]} 25... Rab8 {[%clk 0:01:38.5]} 26. Red1 {[%clk
0:02:05.9]} 26... Be7 {[%clk 0:01:35.7]} 27. Qc2 {[%clk 0:01:35.8]} 27... Rh8
{[%clk 0:01:34.6]} 28. f4 {[%clk 0:01:18.5]} 28... hxg3 {[%clk 0:01:31.1]} 29.
hxg3 {[%clk 0:01:17.9]} 29... Rbe8 {[%clk 0:01:25.6]} 30. Re1 {[%clk 0:01:04.7]}
30... Rh5 {[%clk 0:01:24.1]} 31. Bf3 {[%clk 0:00:55.2]} 31... Rh3 {[%clk
0:01:23.3]} 32. Rg2 {[%clk 0:00:44.7]} 32... Reh8 {[%clk 0:01:21.6]} 33. Kf2
{[%clk 0:00:28.8]} 33... f5 {[%clk 0:01:21]} 34. fxe5 {[%clk 0:00:25.5]} 34...
fxe4 {[%clk 0:01:15.9]} 35. Bg4 {[%clk 0:00:24.5]} 35... Rf8+ {[%clk 0:01:11.9]}
36. Ke2 {[%clk 0:00:23.2]} 36... Bd7 {[%clk 0:00:50]} 37. e6 {[%clk 0:00:19.2]}
37... Bxe6 {[%clk 0:00:39.6]} 38. Bxe6 {[%clk 0:00:19.3]} 38... Rh5 {[%clk
0:00:39.7]} 39. Bd5 {[%clk 0:00:18.1]} 39... Qd7 {[%clk 0:00:39.4]} 40. Qxe4
{[%clk 0:00:17]} 40... Bf6 {[%clk 0:00:39.5]} 41. Kd1 {[%clk 0:00:15.7]} 41...
Re5 {[%clk 0:00:39]} 42. Qd3 {[%clk 0:00:15.4]} 42... Qg4+ {[%clk 0:00:37.5]}
43. Kc2 {[%clk 0:00:10.6]} 43... Rfe8 {[%clk 0:00:36]} 44. Rge2 {[%clk
0:00:10.3]} 44... Qh5 {[%clk 0:00:33]} 45. Kd2 {[%clk 0:00:06.7]} 45... Rxe3
{[%clk 0:00:20.5]} 46. Rxe3 {[%clk 0:00:07.6]} 46... Bg5 {[%clk 0:00:20.8]} 47.
Qd4+ {[%clk 0:00:07.2]} 47... Re5 {[%clk 0:00:19.7]} 48. Kd3 {[%clk 0:00:05.6]}
48... Bxe3 {[%clk 0:00:19.6]} 49. Rxe3 {[%clk 0:00:05]} 49... Qd1+ {[%clk
0:00:19.4]} 50. Kc3 {[%clk 0:00:05.5]} 50... Qa1+ {[%clk 0:00:19.3]} 51. Kd3
{[%clk 0:00:05.5]} 51... Qd1+ {[%clk 0:00:18.7]} 52. Kc3 {[%clk 0:00:05.8]}
52... Qc1+ {[%clk 0:00:17.6]} 53. Kd3 {[%clk 0:00:05.7]} 53... Qd1+ {[%clk
0:00:14.6]} 1/2-1/2

[Event "*** SCC Grand Prix: Titled Tuesday Blitz"]
[Site "Chess.com"]
[Date "2020.10.13"]
[Round "4"]
[White "Indianlad"]
[Black "TomiLen"]
[Result "1-0"]
[WhiteElo "2907"]
[BlackElo "2588"]
[TimeControl "180+1"]
[EndTime "10:40:13 PDT"]
[Termination "Indianlad won by resignation"]

1. d4 {[%clk 0:03:00.9]} 1... d5 {[%clk 0:02:57.4]} 2. Nf3 {[%clk 0:03:01.2]}
2... Nf6 {[%clk 0:02:57]} 3. c4 {[%clk 0:03:00.5]} 3... c6 {[%clk 0:02:57.2]} 4.
Nc3 {[%clk 0:03:00.1]} 4... dxc4 {[%clk 0:02:57.2]} 5. a4 {[%clk 0:03:00.2]}
5... Bf5 {[%clk 0:02:56.6]} 6. Ne5 {[%clk 0:03:00.1]} 6... e6 {[%clk 0:02:55.4]}
7. e3 {[%clk 0:02:54]} 7... Bb4 {[%clk 0:02:52.2]} 8. Bxc4 {[%clk 0:02:53.4]}
8... Nbd7 {[%clk 0:02:51.4]} 9. Nd3 {[%clk 0:02:53.6]} 9... Bxd3 {[%clk
0:02:45.4]} 10. Bxd3 {[%clk 0:02:52.4]} 10... O-O {[%clk 0:02:44.2]} 11. O-O
{[%clk 0:02:52.7]} 11... c5 {[%clk 0:02:43.7]} 12. Qb3 {[%clk 0:02:40]} 12...
Qb6 {[%clk 0:02:34.3]} 13. Na2 {[%clk 0:02:23]} 13... Ba5 {[%clk 0:02:31.5]} 14.
Qa3 {[%clk 0:02:19]} 14... Nd5 {[%clk 0:02:19.8]} 15. Bb5 {[%clk 0:02:18.5]}
15... Bb4 {[%clk 0:02:04.8]} 16. Nxb4 {[%clk 0:02:12.2]} 16... cxb4 {[%clk
0:02:05.7]} 17. Qb3 {[%clk 0:02:11.6]} 17... N7f6 {[%clk 0:02:04.5]} 18. Bd2
{[%clk 0:02:10]} 18... Ne4 {[%clk 0:01:53]} 19. Rfd1 {[%clk 0:02:10.1]} 19...
Nxd2 {[%clk 0:01:50.5]} 20. Rxd2 {[%clk 0:02:10.3]} 20... Rac8 {[%clk
0:01:47.1]} 21. h3 {[%clk 0:02:10.1]} 21... a5 {[%clk 0:01:38.6]} 22. Bc4 {[%clk
0:02:04.2]} 22... Nf6 {[%clk 0:01:36.8]} 23. Rc1 {[%clk 0:02:03.2]} 23... Rc6
{[%clk 0:01:34.5]} 24. Rdc2 {[%clk 0:02:03.2]} 24... Rfc8 {[%clk 0:01:34.5]} 25.
Bb5 {[%clk 0:02:02.3]} 25... R6c7 {[%clk 0:01:25.5]} 26. Rxc7 {[%clk 0:01:55]}
26... Rxc7 {[%clk 0:01:25.2]} 27. Rc4 {[%clk 0:01:55.6]} 27... g6 {[%clk
0:01:23.5]} 28. Qc2 {[%clk 0:01:55.4]} 28... Rxc4 {[%clk 0:01:21.9]} 29. Qxc4
{[%clk 0:01:56.3]} 29... Qd8 {[%clk 0:01:21.3]} 30. Qc5 {[%clk 0:01:51.1]} 30...
b6 {[%clk 0:01:18.3]} 31. Qc6 {[%clk 0:01:47.6]} 31... Kg7 {[%clk 0:01:14.9]}
32. Bc4 {[%clk 0:01:39]} 32... h5 {[%clk 0:01:12.6]} 33. Kf1 {[%clk 0:01:36.4]}
33... Ne8 {[%clk 0:01:07.1]} 34. Ke2 {[%clk 0:01:35.7]} 34... Nd6 {[%clk
0:01:06.7]} 35. Bd3 {[%clk 0:01:36.3]} 35... Nf5 {[%clk 0:00:58.8]} 36. g3
{[%clk 0:01:23.5]} 36... Nd6 {[%clk 0:00:44.7]} 37. e4 {[%clk 0:01:21.1]} 37...
Ne8 {[%clk 0:00:33.9]} 38. Qc4 {[%clk 0:00:50.3]} 38... Nd6 {[%clk 0:00:28.9]}
39. Qc1 {[%clk 0:00:50.9]} 39... Ne8 {[%clk 0:00:23.6]} 40. Qe3 {[%clk
0:00:51.4]} 40... Nf6 {[%clk 0:00:21.8]} 41. b3 {[%clk 0:00:45.7]} 41... Nd7
{[%clk 0:00:21.1]} 42. f4 {[%clk 0:00:43.4]} 42... Qc7 {[%clk 0:00:17.9]} 43.
Bc4 {[%clk 0:00:43.5]} 43... Nb8 {[%clk 0:00:17.8]} 44. d5 {[%clk 0:00:42.2]}
44... e5 {[%clk 0:00:16.2]} 45. fxe5 {[%clk 0:00:33.3]} 45... Qxe5 {[%clk
0:00:16.3]} 46. Qxb6 {[%clk 0:00:34]} 46... Qxg3 {[%clk 0:00:12.6]} 47. Qe3
{[%clk 0:00:34.2]} 47... Qxe3+ {[%clk 0:00:10.2]} 48. Kxe3 {[%clk 0:00:34.4]}
48... Kf6 {[%clk 0:00:10.8]} 49. Kd4 {[%clk 0:00:33.2]} 49... Nd7 {[%clk
0:00:11.4]} 50. Bb5 {[%clk 0:00:33.3]} 50... Ne5 {[%clk 0:00:11.2]} 51. Kc5
{[%clk 0:00:33.3]} 51... g5 {[%clk 0:00:10.6]} 52. Kb6 {[%clk 0:00:32.9]} 52...
g4 {[%clk 0:00:10.3]} 53. hxg4 {[%clk 0:00:33.8]} 53... hxg4 {[%clk 0:00:10.9]}
54. Kxa5 {[%clk 0:00:32.7]} 54... g3 {[%clk 0:00:10.5]} 55. Bf1 {[%clk
0:00:33.3]} 55... Nd3 {[%clk 0:00:07.8]} 56. Kb6 {[%clk 0:00:30.6]} 56... Ke5
{[%clk 0:00:07.8]} 57. a5 {[%clk 0:00:29.9]} 1-0

[Event "*** SCC Grand Prix: Titled Tuesday Blitz"]
[Site "Chess.com"]
[Date "2020.10.13"]
[Round "4"]
[White "PhileKhoob"]
[Black "dosto07"]
[Result "1-0"]
[WhiteElo "2501"]
[BlackElo "2330"]
[TimeControl "180+1"]
[EndTime "10:40:13 PDT"]
[Termination "PhileKhoob won on time"]

1. Nf3 {[%clk 0:03:00.9]} 1... d5 {[%clk 0:02:58.4]} 2. g3 {[%clk 0:03:00.2]}
2... Nf6 {[%clk 0:02:58.2]} 3. Bg2 {[%clk 0:03:01.1]} 3... c6 {[%clk 0:02:58]}
4. O-O {[%clk 0:03:01.3]} 4... Bg4 {[%clk 0:02:58.3]} 5. Ne5 {[%clk 0:02:54]}
5... Bf5 {[%clk 0:02:57.3]} 6. c4 {[%clk 0:02:53.6]} 6... e6 {[%clk 0:02:55.4]}
7. cxd5 {[%clk 0:02:52.7]} 7... exd5 {[%clk 0:02:38.4]} 8. d3 {[%clk 0:02:45.7]}
8... Nbd7 {[%clk 0:02:37.6]} 9. Nf3 {[%clk 0:02:42.1]} 9... Be7 {[%clk
0:02:31.3]} 10. Nc3 {[%clk 0:02:42.1]} 10... h6 {[%clk 0:02:24.7]} 11. e4 {[%clk
0:02:23.6]} 11... dxe4 {[%clk 0:02:19.6]} 12. dxe4 {[%clk 0:02:24.5]} 12... Bg4
{[%clk 0:02:16.3]} 13. h3 {[%clk 0:02:14.2]} 13... Bxf3 {[%clk 0:02:14.7]} 14.
Qxf3 {[%clk 0:02:15.1]} 14... O-O {[%clk 0:02:13.1]} 15. Be3 {[%clk 0:02:01.7]}
15... Ne5 {[%clk 0:02:10]} 16. Qe2 {[%clk 0:02:01.9]} 16... Qd3 {[%clk
0:02:05.4]} 17. f4 {[%clk 0:02:00.1]} 17... Qxe2 {[%clk 0:02:03.6]} 18. Nxe2
{[%clk 0:02:01]} 18... Nc4 {[%clk 0:02:00.2]} 19. Bc1 {[%clk 0:01:55.9]} 19...
Bc5+ {[%clk 0:01:58.2]} 20. Kh2 {[%clk 0:01:55.7]} 20... Ne3 {[%clk 0:01:47]}
21. Bxe3 {[%clk 0:01:42.1]} 21... Bxe3 {[%clk 0:01:46.7]} 22. e5 {[%clk
0:01:40.1]} 22... Nd5 {[%clk 0:01:45]} 23. Bxd5 {[%clk 0:01:40.3]} 23... cxd5
{[%clk 0:01:44.4]} 24. Rad1 {[%clk 0:01:41.2]} 24... Rfd8 {[%clk 0:01:42.7]} 25.
Rd3 {[%clk 0:01:41.5]} 25... Bb6 {[%clk 0:01:40.9]} 26. Rfd1 {[%clk 0:01:41]}
26... Rac8 {[%clk 0:01:40.1]} 27. Kg2 {[%clk 0:01:36.4]} 27... Rc2 {[%clk
0:01:35.2]} 28. R1d2 {[%clk 0:01:36.6]} 28... Rxd2 {[%clk 0:01:27.7]} 29. Rxd2
{[%clk 0:01:37.5]} 29... Kf8 {[%clk 0:01:19.3]} 30. Kf3 {[%clk 0:01:34.5]} 30...
Ke7 {[%clk 0:01:11.2]} 31. f5 {[%clk 0:01:34.9]} 31... Bc7 {[%clk 0:00:57.1]}
32. Nf4 {[%clk 0:00:54.7]} 32... Bxe5 {[%clk 0:00:47.3]} 33. Nxd5+ {[%clk
0:00:54.6]} 33... Kf8 {[%clk 0:00:44.6]} 34. b3 {[%clk 0:00:55]} 34... Rc8
{[%clk 0:00:33.5]} 35. g4 {[%clk 0:00:52.2]} 35... f6 {[%clk 0:00:31]} 36. b4
{[%clk 0:00:42]} 36... Rc4 {[%clk 0:00:25.8]} 37. a4 {[%clk 0:00:39.5]} 37...
Kf7 {[%clk 0:00:19.7]} 38. a5 {[%clk 0:00:38.4]} 38... a6 {[%clk 0:00:18.4]} 39.
h4 {[%clk 0:00:38.3]} 39... h5 {[%clk 0:00:14.2]} 40. g5 {[%clk 0:00:36.2]}
40... Rxh4 {[%clk 0:00:13.6]} 41. g6+ {[%clk 0:00:36.4]} 41... Kf8 {[%clk
0:00:13.5]} 42. Ne3 {[%clk 0:00:31.4]} 42... Rf4+ {[%clk 0:00:11.1]} 43. Ke2
{[%clk 0:00:30]} 43... Rd4 {[%clk 0:00:11.6]} 44. Rc2 {[%clk 0:00:27.3]} 44...
Ke7 {[%clk 0:00:10.3]} 45. Rc8 {[%clk 0:00:24.1]} 45... Rd8 {[%clk 0:00:09.7]}
46. Rc4 {[%clk 0:00:21.7]} 46... Rd4 {[%clk 0:00:08.3]} 47. Rc8 {[%clk
0:00:21.3]} 47... Rxb4 {[%clk 0:00:07.6]} 48. Rg8 {[%clk 0:00:20.8]} 48... Rb2+
{[%clk 0:00:06.3]} 49. Kf3 {[%clk 0:00:20.8]} 49... Kd7 {[%clk 0:00:05.4]} 50.
Rxg7+ {[%clk 0:00:21]} 50... Kc6 {[%clk 0:00:05.6]} 51. Re7 {[%clk 0:00:18.3]}
51... Rb3 {[%clk 0:00:06.5]} 52. g7 {[%clk 0:00:17.9]} 52... Bd6 {[%clk
0:00:04.2]} 53. Re6 {[%clk 0:00:16.6]} 53... Rb1 {[%clk 0:00:03.2]} 54. Rxd6+
{[%clk 0:00:16.6]} 1-0